Workbook

Sheet Daños
A1: Determinación de daños | M1: Costo financiero
B2: IANCA - Instituto Argentino de Negociación, Conciliación y Arbitraje | N2: IANCA - Instituto Argentino de Negociación, Conciliación y Arbitraje
A4: Ante proveedor | M4: Ante proveedor
A5: Tiempo dedicado para atender el daño y sus derivaciones | J5: © Miguel Ángel Martín | M5: Tiempo dedicado para atender el daño y sus derivaciones
A6: Aspecto | B6: Tiempo de cada una de la intervenciones | K6: Total | M6: Tiempos | N6: Tiempo de cada una de la intervenciones | W6: Total
B7: 2017-05-03 | K7: minutos | N7: =IF(B7="","",B7) -> 2017-05-03 | O7: =IF(C7="","",C7) -> 
A8: Traslado | B8: 100 | K8: =IF(B8="",0,SUM(B8:J8)) -> 100 | M8: Totales minutos: | N8: =IF(B21=0,"",B21) -> 100 | O8: =IF(C21=0,"",C21) -> 
A9: Trámites en oficinas del proveedor | K9: =IF(B9="",0,SUM(B9:J9)) -> 0 | M9: Diás de financiación: | N9: =IF(N7="","",$G$82-N7) -> 304
A10: Cumplimentación de formularios | K10: 0 | M10: Costo dedicación minuto: | N10: =IF(N6="","",'Datos Básicos'!$K$19/60) -> $ 4.17 | O10: =IF(O6="","",'Datos Básicos'!$K$19/60) ->  | P10: =IF(P6="","",'Datos Básicos'!$K$19/60) ->  | Q10: =IF(Q6="","",'Datos Básicos'!$K$19/60) ->  | R10: =IF(R6="","",'Datos Básicos'!$K$19/60) ->  | S10: =IF(S6="","",'Datos Básicos'!$K$19/60) ->  | T10: =IF(T6="","",'Datos Básicos'!$K$19/60) ->  | U10: =IF(U6="","",'Datos Básicos'!$K$19/60) ->  | V10: =IF(V6="","",'Datos Básicos'!$K$19/60) -> 
A11: Redacción de notas | K11: 0 | M11: Costo financiero: | N11: =IF(N6="","",(N8*N10*'Datos Básicos'!$E$13*N9)) -> $ 86.76 | O11: =IF(O6="","",(O8*O10*'Datos Básicos'!$E$13*O9)) ->  | P11: =IF(P6="","",(P8*P10*'Datos Básicos'!$E$13*P9)) ->  | Q11: =IF(Q6="","",(Q8*Q10*'Datos Básicos'!$E$13*Q9)) ->  | R11: =IF(R6="","",(R8*R10*'Datos Básicos'!$E$13*R9)) ->  | S11: =IF(S6="","",(S8*S10*'Datos Básicos'!$E$13*S9)) ->  | T11: =IF(T6="","",(T8*T10*'Datos Básicos'!$E$13*T9)) ->  | U11: =IF(U6="","",(U8*U10*'Datos Básicos'!$E$13*U9)) ->  | V11: =IF(V6="","",(V8*V10*'Datos Básicos'!$E$13*V9)) ->  | W11: =SUM(N11:V11) -> $ 86.76 | X11: Financiero
A12: Consecución de documentación (facturas, tickets, presupuestos, etcétera) | K12: 0 | M12: Valor dedicación: | N12: =IF(N6="","",N8*N10) -> $ 416.67 | O12: =IF(O6="","",O8*O10) ->  | W12: =SUM(N12:V12) -> $ 416.67 | X12: Dedicación
A13: Copias de documentación | K13: 0
A14: Despacho por correo (físico o electrónico) | K14: 0 | M14: Erogaciones o pérdida de ingresos con cada responsable de la provisión
A15: Investigación del daño | K15: 0 | M15: Aspecto | N15: Importe de cada una de la intervenciones | W15: Total
A16: Consultas a especialistas | K16: 0 | N16: =IF(B25="","",B25) -> 2017-05-03 | O16: =IF(C25="","",C25) -> 
A17: Malestar, frustración, contrariedad, etcétera | K17: 0 | M17: Total erogaciones: | N17: =IF(B38=0,"",B38) -> $ 150.00 | O17: =IF(C38=0,"",C38) ->  | W17: =SUM(N17:V17) -> $ 150.00 | X17: Erogaciones
A18: Reparación de daños por fallas del producto o servicio | K18: 0 | M18: Diás de financiación: | N18: =IF(N16="","",$G$82-N16) -> 304
A19: Otros | K19: 0 | M19: Costo financiero: | N19: =IF(N16="","",(N17*'Datos Básicos'!$E$13*N18)) -> $ 31.23 | O19: =IF(O16="","",(O17*'Datos Básicos'!$E$13*O18)) ->  | P19: =IF(P16="","",(P17*'Datos Básicos'!$E$13*P18)) ->  | Q19: =IF(Q16="","",(Q17*'Datos Básicos'!$E$13*Q18)) ->  | R19: =IF(R16="","",(R17*'Datos Básicos'!$E$13*R18)) ->  | S19: =IF(S16="","",(S17*'Datos Básicos'!$E$13*S18)) ->  | T19: =IF(T16="","",(T17*'Datos Básicos'!$E$13*T18)) ->  | U19: =IF(U16="","",(U17*'Datos Básicos'!$E$13*U18)) ->  | V19: =IF(V16="","",(V17*'Datos Básicos'!$E$13*V18)) ->  | W19: =SUM(N19:V19) -> $ 31.23 | X19: Financiero
A20: Otros | K20: 0
A21: Total minutos: | B21: =SUM(B8:B20) -> 100 | C21: =SUM(C8:C20) -> 0 | D21: 0 | E21: 0 | F21: 0 | G21: 0 | H21: 0 | I21: 0 | J21: 0 | K21: 100 | M21: Reclamo ante Organism(os) Oficial(es)
M22: Inversión de tiempo con cada responsable organismo
A23: Erogaciones o pérdida de ingresos con cada responsable de la provisión | M23: Aspecto | N23: Tiempo de cada una de la intervenciones | W23: Total
A24: Aspecto | B24: Importe de cada una de la intervenciones | K24: Total | N24: =IF(B46="","",B46) -> 2017-06-20 | O24: =IF(C46="","",C46) -> 
B25: 2017-05-03 | K25: pesos | M25: Totales minutos: | N25: =IF(B58=0,"",B58) -> 1,000 | O25: =IF(C58=0,"",C58) -> 
A26: Transporte | K26: =IF(B26="",0,SUM(B26:J26)) -> $ 0.00 | M26: Diás de financiación: | N26: =IF(N24="","",$G$82-N24) -> 256
A27: Papelería para notas | K27: $ 0.00 | M27: Costo dedicación minuto: | N27: =N10 -> $ 4.17 | O27: =O10 -> 
A28: Fotocopias | K28: $ 0.00 | M28: Costo financiero: | N28: =IF(N24="","",(N25*N27*'Datos Básicos'!$E$13*N26)) -> $ 730.59 | O28: =IF(O24="","",(O25*O27*'Datos Básicos'!$E$13*O26)) ->  | P28: =IF(P24="","",(P25*P27*'Datos Básicos'!$E$13*P26)) ->  | Q28: =IF(Q24="","",(Q25*Q27*'Datos Básicos'!$E$13*Q26)) ->  | R28: =IF(R24="","",(R25*R27*'Datos Básicos'!$E$13*R26)) ->  | S28: =IF(S24="","",(S25*S27*'Datos Básicos'!$E$13*S26)) ->  | T28: =IF(T24="","",(T25*T27*'Datos Básicos'!$E$13*T26)) ->  | U28: =IF(U24="","",(U25*U27*'Datos Básicos'!$E$13*U26)) ->  | V28: =IF(V24="","",(V25*V27*'Datos Básicos'!$E$13*V26)) ->  | W28: =SUM(N28:V28) -> $ 730.59 | X28: Financiero
A29: Correspondencia | K29: $ 0.00 | M29: Valor dedicación: | N29: =IF(N23="","",N25*N27) -> $ 4,166.67 | O29: =IF(O23="","",O25*O27) ->  | W29: =SUM(N29:V29) -> $ 4,166.67 | X29: Dedicación
A30: Comunicaciones telefónicas | K30: $ 0.00
A31: Sustitución del elemento para poder atender las necesidades | K31: $ 0.00 | M31: Erogaciones o pérdida de ingresos con cada organismo
A32: Retribuciones perdidas (lucro cesante o erogaciones) | B32: $ 150.00 | K32: $ 150.00 | M32: Aspecto | N32: Importe de cada una de la intervenciones
A33: Asesoramiento | K33: $ 0.00 | N33: =IF(B62="","",B62) -> 2017-03-03 | O33: =IF(C62="","",C62) -> 
A34: Reparación del producto | K34: $ 0.00 | M34: Total erogaciones: | N34: =IF(B74=0,"",B74) -> $ 600.00 | O34: =IF(C74=0,"",C74) ->  | W34: =SUM(N34:V34) -> $ 600.00 | X34: Erogaciones
A35: Reparación de daños por fallos del producto o servicio | K35: $ 0.00 | M35: Diás de financiación: | N35: =IF(N33="","",$G$82-N33) -> 365
A36: Otros | K36: $ 0.00 | M36: Costo financiero: | N36: =IF(N33="","",(N34*'Datos Básicos'!$E$13*N35)) -> $ 150.00 | O36: =IF(O33="","",(O34*'Datos Básicos'!$E$13*O35)) ->  | P36: =IF(P33="","",(P34*'Datos Básicos'!$E$13*P35)) ->  | Q36: =IF(Q33="","",(Q34*'Datos Básicos'!$E$13*Q35)) ->  | R36: =IF(R33="","",(R34*'Datos Básicos'!$E$13*R35)) ->  | S36: =IF(S33="","",(S34*'Datos Básicos'!$E$13*S35)) ->  | T36: =IF(T33="","",(T34*'Datos Básicos'!$E$13*T35)) ->  | U36: =IF(U33="","",(U34*'Datos Básicos'!$E$13*U35)) ->  | V36: =IF(V33="","",(V34*'Datos Básicos'!$E$13*V35)) ->  | W36: =SUM(N36:V36) -> $ 150.00 | X36: Financiero
A37: Otros | K37: $ 0.00 | W37: =W12+W29 -> $ 4,583.33 | X37: Dedicación
A38: Total pesos: | B38: =SUM(B26:B37) -> $ 150.00 | C38: =SUM(C26:C37) -> $ 0.00 | D38: $ 0.00 | E38: $ 0.00 | F38: $ 0.00 | G38: $ 0.00 | H38: $ 0.00 | I38: $ 0.00 | J38: $ 0.00 | K38: $ 150.00 | W38: =W17+W34 -> $ 750.00 | X38: Erogaciones
W39: =W11+W19+W28+W36 -> $ 998.58 | X39: Financiero
A40: Deteminación de daños
B41: IANCA - Instituto Argentino de Negociación, Conciliación y Arbitraje
A43: Reclamo ante Organism(os) Oficial(es)
A44: Inversión de tiempo con cada responsable organismo
A45: Aspecto | B45: Tiempo de cada una de la intervenciones | K45: Total
B46: 2017-06-20 | K46: minutos
A47: Traslado | K47: =IF(B47="",0,SUM(B47:J47)) -> 0
A48: Trámites en oficinas del organismo | K48: 0
A49: Cumplimentación de formularios | K49: 0
A50: Redacción de notas | K50: 0
A51: Consecución de documentación (facturas, tickets, presupuestos, etcétera) | K51: 0
A52: Copias de documentación | K52: 0
A53: Despacho por correo (físico o electrónico) | B53: 1,000 | K53: 1,000
A54: Consultas a especialistas/comunicaciones telefónicas | K54: 0
A55: Malestar, frustración, contrariedad, etcétera | K55: 0
A56: Otros | K56: 0
A57: Otros | K57: 0
A58: Total minutos: | B58: =SUM(B47:B57) -> 1000 | C58: =SUM(C47:C57) -> 0 | D58: 0 | E58: 0 | F58: 0 | G58: 0 | H58: 0 | I58: 0 | J58: 0 | K58: 1,000
A60: Erogaciones o pérdida de ingresos con cada organismo | J60: © Miguel Ángel Martín
A61: Aspecto | B61: Importe de cada una de la intervenciones | K61: Total
B62: 2017-03-03 | K62: pesos
A63: Transporte | B63: $ 600.00 | K63: =IF(B63="",0,SUM(B63:J63)) -> $ 600.00
A64: Papelería para notas | K64: $ 0.00
A65: Fotocopias | K65: $ 0.00
A66: Correspondencia | K66: $ 0.00
A67: Comunicaciones telefónicas | K67: $ 0.00
A68: Sustitución del elemento para poder atender las necesidades | K68: $ 0.00
A69: Retribuciones perdidas (lucro cesante o erogaciones) | K69: $ 0.00
A70: Asesoramiento | K70: $ 0.00
A71: Averiguación de tramitación | K71: $ 0.00
A72: Otros | K72: $ 0.00
A73: Otros | K73: $ 0.00
A74: Total pesos: | B74: =SUM(B63:B73) -> $ 600.00 | C74: =SUM(C63:C73) -> $ 0.00 | D74: $ 0.00 | E74: $ 0.00 | F74: $ 0.00 | G74: $ 0.00 | H74: $ 0.00 | I74: $ 0.00 | J74: $ 0.00 | K74: $ 600.00
A76: Deteminación de daños
B77: IANCA - Instituto Argentino de Negociación, Conciliación y Arbitraje
A79: Determinación patrimonial sintética a resarcir | D79: © Miguel Ángel Martín
A80: Aspecto | B80: Importes | D80: Concepto | G80: Valores
A81: Daños patrimoniales | B81: =G83 -> $ 1,000.00 | D81: Fecha de daño original | G81: 10/17/16
A82: Daño por erogaciones | B82: =W38 -> $ 750.00 | D82: Fecha actual | G82: 2018-03-03
A83: Daños dedicación | B83: =W37 -> $ 4,583.33 | D83: Daño original: | G83: $ 1,000.00
A84: Sutotal patrimonializado: | B84: =SUM(B81:B83) -> $ 6,333.33 | D84: Tasa interés: | G84: 25.00% | H84: anual
A85: Daño financiero: | B85: =W39 -> $ 998.58 | G85: =G84/365 -> 0.07% | H85: Diaria
A86: Total patrimonializado: | B86: =B84+B85 -> $ 7,331.92
A87: No incluye daño moral

Sheet Datos Básicos
A1: Determinación de daños | J1: Relación de dependencia | K1: Categoría A | L1: 1 | M1: $ 84,000 | N1: $ 68.00
A2: Datos básicos | J2: Monotributo | K2: Categoría B | L2: 2 | M2: $ 126,000 | N2: $ 131.00
B3: IANCA - Instituto Argentino de Negociación, Conciliación y Arbitraje | J3: Jubilación o Pensión | K3: Categoría C | L3: 3 | M3: $ 168,000 | N3: $ 224.00
J4: Rentista | K4: Categoría D | L4: 4 | M4: $ 252,000 | N4: $ 368.00
J5: Eventual | K5: Categoría E | L5: 5 | M5: $ 336,000 | N5: $ 700.00
D6: ® Miguel Ángel Martín | J6: Profesional tarifado | K6: Categoría F | L6: 6 | M6: $ 420,000 | N6: $ 963.00
A7: Damnificado(s): | D7: Concepto | E7: Valor | J7: Empresario | K7: Categoría G | L7: 7 | M7: $ 504,000 | N7: $ 1,225.00
A8: Tipo de ingresos: | D8: SMVM | E8: $ 8,060.00 | J8: Otra | K8: Categoría H | L8: 8 | M8: $ 700,000 | N8: $ 2,800.00
A9: =IF(J9=2,"Monotributista:","") -> Monotributista: | C9: =IF(J9=2,"Pago mensual:","") -> Pago mensual: | D9: Hora profesional | E9: $ 325.00 | F9: =IF(J9=2,M12/12,"") -> $ 42,000.00 | J9: 2 | K9: Categoría I | L9: 9 | M9: $ 822,500 | N9: $ 4,562.08
A10: =IF(J9=2,"","Ingreso mensual:") ->  | B10: $ 50,000.00 | D10: Fotocopia por hoja | E10: $ 1.50 | K10: Categoría J | L10: 10 | M10: $ 945,000 | N10: $ 5,239.38
D11: Impresión | E11: $ 2.00 | K11: Categoría K | L11: 11 | M11: $ 1,050,000 | N11: $ 5,922.12
A12: Valor hora dedicación: | B12: =K19 -> $ 250.00 | D12: Tasa de interés: | E12: 25% | F12: Anual | K12: 7 | M12: =LOOKUP(K12,L1:L11,M1:M11) -> $ 504,000.00 | N12: =LOOKUP(K12,L1:L11,N1:N11) -> $ 1,225.00
E13: =E12/365 -> 0.0685% | F13: Diaria
K14: Valores hora
J15: SMVM | K15: =8060/200 -> $ 40.30
J16: Informado | K16: =IF(B10="",0,B10/200) -> $ 250.00
J17: Monotributista: | K17: =IF(J9=2,M12/200/12,0) -> $ 210.00
J18: Profesional: | K18: =IF(J9=6,E9,0) -> $ 0.00
J19: Computado: | K19: =MAX(K15:K18) -> $ 250.00
